[Event "*** Titled Tuesday Blitz"]
[Site "Chess.com"]
[Date "2020.05.26"]
[Round "8"]
[White "MNyuyu"]
[Black "DariaVoit"]
[Result "0-1"]
[WhiteElo "2313"]
[BlackElo "2501"]
[TimeControl "180+1"]
[EndTime "11:42:01 PDT"]
[Termination "DariaVoit won by resignation"]

1. d4 {[%clk 0:03:00.9]} 1... Nf6 {[%clk 0:02:59.7]} 2. Nf3 {[%clk 0:03:00.6]}
2... e6 {[%clk 0:02:59.8]} 3. Bg5 {[%clk 0:03:00.2]} 3... c5 {[%clk 0:02:58.6]}
4. e3 {[%clk 0:03:00.2]} 4... h6 {[%clk 0:02:58.5]} 5. Bh4 {[%clk 0:02:59.6]}
5... b6 {[%clk 0:02:58.8]} 6. Bd3 {[%clk 0:02:58.7]} 6... Bb7 {[%clk 0:02:58.9]}
7. Nbd2 {[%clk 0:02:58.5]} 7... d6 {[%clk 0:02:59.2]} 8. c3 {[%clk 0:02:51.8]}
8... Nbd7 {[%clk 0:02:59.3]} 9. Qe2 {[%clk 0:02:50.1]} 9... Be7 {[%clk
0:02:59.3]} 10. a4 {[%clk 0:02:45.2]} 10... d5 {[%clk 0:02:56.1]} 11. O-O {[%clk
0:02:40.3]} 11... O-O {[%clk 0:02:48.2]} 12. Rfe1 {[%clk 0:02:39.1]} 12... Re8
{[%clk 0:02:41.7]} 13. Rad1 {[%clk 0:02:35.3]} 13... Qc7 {[%clk 0:02:38.8]} 14.
e4 {[%clk 0:02:32.6]} 14... dxe4 {[%clk 0:02:35.4]} 15. Nxe4 {[%clk 0:02:32]}
15... c4 {[%clk 0:02:22.6]} 16. Bc2 {[%clk 0:02:29.4]} 16... Nd5 {[%clk
0:02:16.8]} 17. Bg3 {[%clk 0:02:26.1]} 17... Qc6 {[%clk 0:02:15.3]} 18. Ned2
{[%clk 0:02:23.8]} 18... Rec8 {[%clk 0:02:09.6]} 19. Be4 {[%clk 0:02:19]} 19...
Qxa4 {[%clk 0:02:07.3]} 20. Ne5 {[%clk 0:02:16.1]} 20... Nxe5 {[%clk 0:01:58.8]}
21. Bxe5 {[%clk 0:02:15]} 21... Qd7 {[%clk 0:01:59.2]} 22. Nxc4 {[%clk
0:02:06.8]} 22... Ba6 {[%clk 0:01:49]} 23. Bd3 {[%clk 0:02:03.2]} 23... Qc6
{[%clk 0:01:30.5]} 24. Ne3 {[%clk 0:01:41.1]} 24... Bxd3 {[%clk 0:01:29.1]} 25.
Qxd3 {[%clk 0:01:40.7]} 25... b5 {[%clk 0:01:21.6]} 26. Nxd5 {[%clk 0:01:38.1]}
26... Qxd5 {[%clk 0:01:21.2]} 27. Ra1 {[%clk 0:01:36.2]} 27... a5 {[%clk
0:01:16.6]} 28. Rec1 {[%clk 0:01:34.6]} 28... b4 {[%clk 0:01:14.9]} 29. c4
{[%clk 0:01:33.3]} 29... Qd7 {[%clk 0:01:12.1]} 30. b3 {[%clk 0:01:32.6]} 30...
a4 {[%clk 0:01:11.7]} 31. bxa4 {[%clk 0:01:25.4]} 31... Rxa4 {[%clk 0:01:12.6]}
32. Rab1 {[%clk 0:01:16.4]} 32... Ra3 {[%clk 0:00:56.5]} 33. Qe4 {[%clk
0:01:15.8]} 33... Qc6 {[%clk 0:00:42]} 34. Qg4 {[%clk 0:01:13.7]} 34... f6
{[%clk 0:00:40.8]} 35. Bg3 {[%clk 0:01:10.9]} 35... Rc3 {[%clk 0:00:39.9]} 36.
Re1 {[%clk 0:00:56.7]} 36... f5 {[%clk 0:00:29.1]} 37. Qg6 {[%clk 0:00:54.8]}
37... Bf6 {[%clk 0:00:28.9]} 38. d5 {[%clk 0:00:49.9]} 38... exd5 {[%clk
0:00:26.5]} 39. cxd5 {[%clk 0:00:48.3]} 39... Qxd5 {[%clk 0:00:25.4]} 40. h3
{[%clk 0:00:46.4]} 40... b3 {[%clk 0:00:24.2]} 41. Rbd1 {[%clk 0:00:45.9]} 41...
Qf7 {[%clk 0:00:23.6]} 42. Qxf5 {[%clk 0:00:44.7]} 42... b2 {[%clk 0:00:23.6]}
43. Rd7 {[%clk 0:00:37.7]} 43... Rc1 {[%clk 0:00:22.2]} 44. Rxf7 {[%clk
0:00:30.9]} 44... Rxe1+ {[%clk 0:00:21.7]} 45. Kh2 {[%clk 0:00:30.9]} 45... b1=Q
{[%clk 0:00:22.1]} 46. Qxc8+ {[%clk 0:00:28.6]} 46... Kxf7 {[%clk 0:00:22.6]}
47. Qd7+ {[%clk 0:00:26.9]} 47... Kg6 {[%clk 0:00:22.5]} 48. Qg4+ {[%clk
0:00:25.8]} 48... Kh7 {[%clk 0:00:22.7]} 49. Bf4 {[%clk 0:00:25.3]} 49... Rh1+
{[%clk 0:00:21]} 50. Kg3 {[%clk 0:00:25]} 50... Qg6 {[%clk 0:00:21.5]} 51. Qxg6+
{[%clk 0:00:23.5]} 51... Kxg6 {[%clk 0:00:21.7]} 52. Be3 {[%clk 0:00:23.4]}
52... Rb1 {[%clk 0:00:21.9]} 53. Kf3 {[%clk 0:00:22.9]} 53... Rb3 {[%clk
0:00:22.8]} 54. g3 {[%clk 0:00:21.7]} 54... Kf5 {[%clk 0:00:22.9]} 55. g4+
{[%clk 0:00:21]} 55... Ke6 {[%clk 0:00:21.7]} 56. Ke4 {[%clk 0:00:20.5]} 56...
Bg5 {[%clk 0:00:19.9]} 57. f4 {[%clk 0:00:19.6]} 57... Be7 {[%clk 0:00:19.9]}
58. f5+ {[%clk 0:00:19.1]} 58... Kf7 {[%clk 0:00:20.4]} 59. Bd4 {[%clk
0:00:18.5]} 59... Rxh3 {[%clk 0:00:19.2]} 60. Be5 {[%clk 0:00:17.5]} 60... Bf6
{[%clk 0:00:18.9]} 61. Bf4 {[%clk 0:00:16.8]} 61... Bg5 {[%clk 0:00:19]} 62. Be5
{[%clk 0:00:16.1]} 62... Rh1 {[%clk 0:00:18]} 63. Kf3 {[%clk 0:00:14.7]} 63...
Rf1+ {[%clk 0:00:18]} 64. Kg3 {[%clk 0:00:14.1]} 64... Re1 {[%clk 0:00:17.8]}
65. Bc3 {[%clk 0:00:13.3]} 65... Re3+ {[%clk 0:00:17]} 66. Kh2 {[%clk 0:00:13]}
66... Rxc3 {[%clk 0:00:17.9]} 0-1

[Event "*** Titled Tuesday Blitz"]
[Site "Chess.com"]
[Date "2020.05.26"]
[Round "8"]
[White "tsvet2005"]
[Black "124chess"]
[Result "0-1"]
[WhiteElo "2531"]
[BlackElo "2758"]
[TimeControl "180+1"]
[EndTime "11:42:02 PDT"]
[Termination "124chess won by resignation"]

1. d4 {[%clk 0:03:00.9]} 1... d6 {[%clk 0:03:00]} 2. e4 {[%clk 0:03:00.2]} 2...
Nf6 {[%clk 0:03:00.2]} 3. Nc3 {[%clk 0:03:00.3]} 3... e5 {[%clk 0:03:00.9]} 4.
dxe5 {[%clk 0:03:01.2]} 4... dxe5 {[%clk 0:03:01.8]} 5. Qxd8+ {[%clk 0:03:01.6]}
5... Kxd8 {[%clk 0:03:02.7]} 6. Bc4 {[%clk 0:03:01.7]} 6... Ke8 {[%clk 0:03:03]}
7. f4 {[%clk 0:03:01.3]} 7... Bb4 {[%clk 0:02:52.8]} 8. Bd3 {[%clk 0:02:16.4]}
8... Nc6 {[%clk 0:02:47.2]} 9. Nf3 {[%clk 0:02:16]} 9... Bg4 {[%clk 0:02:43.9]}
10. fxe5 {[%clk 0:02:06.5]} 10... Nd7 {[%clk 0:02:42.5]} 11. Bf4 {[%clk
0:01:56.5]} 11... Bxf3 {[%clk 0:02:42]} 12. gxf3 {[%clk 0:01:57.4]} 12... Ncxe5
{[%clk 0:02:42.5]} 13. Be2 {[%clk 0:01:38.9]} 13... Ke7 {[%clk 0:02:38.3]} 14.
O-O-O {[%clk 0:01:34.6]} 14... Bxc3 {[%clk 0:02:38]} 15. bxc3 {[%clk 0:01:35.5]}
15... f6 {[%clk 0:02:38.4]} 16. Rhg1 {[%clk 0:01:33.7]} 16... g6 {[%clk
0:02:35.4]} 17. h4 {[%clk 0:01:33.4]} 17... Rad8 {[%clk 0:02:33.9]} 18. Be3
{[%clk 0:01:30.4]} 18... Nb6 {[%clk 0:02:22.4]} 19. Bc5+ {[%clk 0:01:25.9]}
19... Kf7 {[%clk 0:02:14.3]} 20. f4 {[%clk 0:01:22.9]} 20... Ned7 {[%clk
0:02:13.5]} 21. Be3 {[%clk 0:01:16.4]} 21... Rhe8 {[%clk 0:02:12.2]} 22. Bd3
{[%clk 0:01:07.7]} 22... Na4 {[%clk 0:02:04.9]} 23. Bb5 {[%clk 0:00:56.3]} 23...
Nac5 {[%clk 0:01:11.1]} 24. Bxc5 {[%clk 0:00:46.3]} 24... Nxc5 {[%clk 0:01:12]}
25. Bxe8+ {[%clk 0:00:46.9]} 25... Rxe8 {[%clk 0:01:11.7]} 26. Rge1 {[%clk
0:00:47.3]} 26... Re7 {[%clk 0:01:07.6]} 27. e5 {[%clk 0:00:45.8]} 27... fxe5
{[%clk 0:00:51.4]} 28. fxe5 {[%clk 0:00:46.7]} 28... Ke6 {[%clk 0:00:49.8]} 29.
Rd8 {[%clk 0:00:42.2]} 29... Nd7 {[%clk 0:00:48.3]} 30. h5 {[%clk 0:00:27.5]}
30... Nxe5 {[%clk 0:00:44.6]} 31. hxg6 {[%clk 0:00:25.6]} 31... hxg6 {[%clk
0:00:45.5]} 32. Rb8 {[%clk 0:00:21.7]} 32... b6 {[%clk 0:00:44.6]} 33. Ra8
{[%clk 0:00:21.7]} 33... a5 {[%clk 0:00:44.5]} 34. Rg8 {[%clk 0:00:22.1]} 34...
Kf7 {[%clk 0:00:41.1]} 35. Rc8 {[%clk 0:00:19.3]} 35... g5 {[%clk 0:00:39.1]}
36. Rf1+ {[%clk 0:00:18.9]} 36... Ke6 {[%clk 0:00:30.7]} 37. Rg8 {[%clk
0:00:17.1]} 37... g4 {[%clk 0:00:23.7]} 38. Rg5 {[%clk 0:00:16.2]} 38... a4
{[%clk 0:00:15.9]} 39. Re1 {[%clk 0:00:10.2]} 39... Kf6 {[%clk 0:00:15.7]} 40.
Rh5 {[%clk 0:00:08.5]} 40... Nd3+ {[%clk 0:00:15.3]} 41. cxd3 {[%clk 0:00:09]}
41... Rxe1+ {[%clk 0:00:15.7]} 42. Kd2 {[%clk 0:00:09.9]} 42... Ra1 {[%clk
0:00:15.8]} 43. Rh4 {[%clk 0:00:10.3]} 43... Kg5 {[%clk 0:00:15.3]} 44. Ke3
{[%clk 0:00:11.2]} 44... Rxa2 {[%clk 0:00:15.4]} 45. Rh8 {[%clk 0:00:10.1]}
45... g3 {[%clk 0:00:14]} 46. Rg8+ {[%clk 0:00:11]} 46... Kh4 {[%clk 0:00:13.9]}
47. Kf3 {[%clk 0:00:10.4]} 47... g2 {[%clk 0:00:13.8]} 48. Rh8+ {[%clk
0:00:09.1]} 48... Kg5 {[%clk 0:00:13.7]} 49. Rg8+ {[%clk 0:00:10]} 49... Kf5
{[%clk 0:00:13.9]} 50. d4 {[%clk 0:00:08.5]} 50... Ke6 {[%clk 0:00:13.8]} 51.
Ke4 {[%clk 0:00:08.3]} 51... Kd6 {[%clk 0:00:13.3]} 52. c4 {[%clk 0:00:08]}
52... Kc6 {[%clk 0:00:13.1]} 53. Rg6+ {[%clk 0:00:07.9]} 53... Kb7 {[%clk
0:00:13.1]} 54. c5 {[%clk 0:00:08.3]} 54... bxc5 {[%clk 0:00:13]} 55. dxc5
{[%clk 0:00:09.2]} 55... a3 {[%clk 0:00:13.3]} 56. Kd5 {[%clk 0:00:09.5]} 56...
Rd2+ {[%clk 0:00:13.2]} 57. Kc4 {[%clk 0:00:09.7]} 57... a2 {[%clk 0:00:14.1]}
58. Kb5 {[%clk 0:00:03.8]} 58... Rb2+ {[%clk 0:00:11.3]} 59. Kc4 {[%clk
0:00:03.8]} 59... a1=Q {[%clk 0:00:11.7]} 60. Rb6+ {[%clk 0:00:03.2]} 60... cxb6
{[%clk 0:00:11.2]} 61. c6+ {[%clk 0:00:04.1]} 0-1

[Event "*** Titled Tuesday Blitz"]
[Site "Chess.com"]
[Date "2020.05.26"]
[Round "8"]
[White "Nafania1"]
[Black "druskacik"]
[Result "0-1"]
[WhiteElo "2452"]
[BlackElo "2587"]
[TimeControl "180+1"]
[EndTime "11:42:02 PDT"]
[Termination "druskacik won on time"]

1. e4 {[%clk 0:03:00.9]} 1... e6 {[%clk 0:02:58.5]} 2. d4 {[%clk 0:03:00.5]}
2... d5 {[%clk 0:02:59.4]} 3. e5 {[%clk 0:03:00.9]} 3... c5 {[%clk 0:02:59.2]}
4. c3 {[%clk 0:03:01.4]} 4... Nc6 {[%clk 0:03:00.1]} 5. Nf3 {[%clk 0:03:01.6]}
5... Bd7 {[%clk 0:03:00.2]} 6. Be2 {[%clk 0:03:01.9]} 6... f6 {[%clk 0:03:00.4]}
7. O-O {[%clk 0:02:59.7]} 7... Nge7 {[%clk 0:02:55.3]} 8. c4 {[%clk 0:02:20.1]}
8... cxd4 {[%clk 0:02:39.9]} 9. exf6 {[%clk 0:02:17.9]} 9... gxf6 {[%clk
0:02:38.3]} 10. cxd5 {[%clk 0:02:18]} 10... Nxd5 {[%clk 0:02:37.2]} 11. Nxd4
{[%clk 0:02:17.9]} 11... Bc5 {[%clk 0:02:20.3]} 12. Bh5+ {[%clk 0:02:13.2]}
12... Ke7 {[%clk 0:02:18.2]} 13. Nb3 {[%clk 0:02:03.1]} 13... Bd6 {[%clk
0:02:15.7]} 14. N1d2 {[%clk 0:01:58.6]} 14... Qc7 {[%clk 0:01:58.2]} 15. g3
{[%clk 0:01:56.6]} 15... Rad8 {[%clk 0:01:40.6]} 16. Ne4 {[%clk 0:01:46.3]}
16... Be5 {[%clk 0:01:40.5]} 17. Rb1 {[%clk 0:01:38.4]} 17... Be8 {[%clk
0:01:35.3]} 18. Bxe8 {[%clk 0:01:35.5]} 18... Rhxe8 {[%clk 0:01:32.6]} 19. Qh5
{[%clk 0:01:35]} 19... Kd7 {[%clk 0:01:32.6]} 20. f4 {[%clk 0:01:19.2]} 20...
Bd6 {[%clk 0:01:15.8]} 21. Nxd6 {[%clk 0:01:17.2]} 21... Qxd6 {[%clk 0:01:14.5]}
22. Rd1 {[%clk 0:00:59.2]} 22... Kc8 {[%clk 0:01:12.5]} 23. Be3 {[%clk
0:00:58.8]} 23... Qb4 {[%clk 0:00:57.7]} 24. Qf3 {[%clk 0:00:42.4]} 24... h5
{[%clk 0:00:54.9]} 25. Bc5 {[%clk 0:00:41.4]} 25... Qa4 {[%clk 0:00:50.8]} 26.
Bf2 {[%clk 0:00:36]} 26... h4 {[%clk 0:00:49.4]} 27. a3 {[%clk 0:00:32]} 27...
hxg3 {[%clk 0:00:46.9]} 28. hxg3 {[%clk 0:00:32.4]} 28... Rg8 {[%clk 0:00:44.9]}
29. Nc5 {[%clk 0:00:32.5]} 29... Qxf4 {[%clk 0:00:42.4]} 30. Qxf4 {[%clk
0:00:29.6]} 30... Nxf4 {[%clk 0:00:43.3]} 31. Rxd8+ {[%clk 0:00:29.4]} 31...
Nxd8 {[%clk 0:00:40.5]} 32. Kf1 {[%clk 0:00:28.8]} 32... Nh3 {[%clk 0:00:34.6]}
33. Rc1 {[%clk 0:00:26.7]} 33... Nxf2 {[%clk 0:00:26.7]} 34. Kxf2 {[%clk
0:00:23.5]} 34... e5 {[%clk 0:00:23.3]} 35. Ne4+ {[%clk 0:00:20.5]} 35... Kb8
{[%clk 0:00:21.2]} 36. Kg2 {[%clk 0:00:18.1]} 36... Rf8 {[%clk 0:00:16.6]} 37.
g4 {[%clk 0:00:17.9]} 37... Ne6 {[%clk 0:00:16.4]} 38. Kg3 {[%clk 0:00:16.4]}
38... Nf4 {[%clk 0:00:16.6]} 39. Rd1 {[%clk 0:00:14.9]} 39... a6 {[%clk
0:00:16.7]} 40. Rd6 {[%clk 0:00:14.5]} 40... f5 {[%clk 0:00:17.1]} 41. gxf5
{[%clk 0:00:14.6]} 41... Rxf5 {[%clk 0:00:18]} 42. Kg4 {[%clk 0:00:13.8]} 42...
Rf8 {[%clk 0:00:18.1]} 43. Nc5 {[%clk 0:00:12.2]} 43... Kc7 {[%clk 0:00:17.7]}
44. Rh6 {[%clk 0:00:10.5]} 44... Rg8+ {[%clk 0:00:17.8]} 45. Kf5 {[%clk
0:00:09.8]} 45... Ne2 {[%clk 0:00:18]} 46. Kxe5 {[%clk 0:00:08.9]} 46... Rg5+
{[%clk 0:00:17.9]} 47. Ke4 {[%clk 0:00:05]} 47... Rxc5 {[%clk 0:00:18.8]} 48.
Kd3 {[%clk 0:00:04.6]} 48... Nc1+ {[%clk 0:00:18.9]} 49. Kd4 {[%clk 0:00:04.1]}
49... Nb3+ {[%clk 0:00:19.6]} 50. Kd3 {[%clk 0:00:04.3]} 50... Na5 {[%clk
0:00:20.1]} 51. b4 {[%clk 0:00:04]} 51... Rd5+ {[%clk 0:00:19.5]} 52. Ke4 {[%clk
0:00:04.3]} 52... Rb5 {[%clk 0:00:13.7]} 53. bxa5 {[%clk 0:00:03.8]} 53... Rxa5
{[%clk 0:00:14.6]} 54. Rh3 {[%clk 0:00:02.7]} 54... Kc6 {[%clk 0:00:14.8]} 55.
Kd4 {[%clk 0:00:02.6]} 55... Ra4+ {[%clk 0:00:14.5]} 56. Ke5 {[%clk 0:00:01.9]}
56... Kc5 {[%clk 0:00:14.5]} 57. Rc3+ {[%clk 0:00:01.8]} 57... Kb5 {[%clk
0:00:14.5]} 58. Kd6 {[%clk 0:00:02.1]} 58... b6 {[%clk 0:00:14.2]} 59. Kc7
{[%clk 0:00:01]} 59... Ka5 {[%clk 0:00:14.3]} 0-1

[Event "*** Titled Tuesday Blitz"]
[Site "Chess.com"]
[Date "2020.05.26"]
[Round "8"]
[White "manmanlai1"]
[Black "Turquoise_2701"]
[Result "0-1"]
[WhiteElo "2349"]
[BlackElo "2191"]
[TimeControl "180+1"]
[EndTime "11:42:02 PDT"]
[Termination "Turquoise_2701 won on time"]

1. e4 {[%clk 0:03:00.9]} 1... c5 {[%clk 0:02:59.5]} 2. Nf3 {[%clk 0:03:01.1]}
2... d6 {[%clk 0:02:59.8]} 3. d4 {[%clk 0:03:01.5]} 3... cxd4 {[%clk 0:03:00.7]}
4. Nxd4 {[%clk 0:03:02]} 4... Nf6 {[%clk 0:03:01.4]} 5. Nc3 {[%clk 0:03:02.5]}
5... a6 {[%clk 0:03:01.9]} 6. h3 {[%clk 0:03:03]} 6... e5 {[%clk 0:03:01.8]} 7.
Nde2 {[%clk 0:03:00.3]} 7... Be6 {[%clk 0:03:01.4]} 8. Bg5 {[%clk 0:02:53.9]}
8... Nbd7 {[%clk 0:02:55.2]} 9. g4 {[%clk 0:02:52.5]} 9... h6 {[%clk 0:02:54.3]}
10. Be3 {[%clk 0:02:51.5]} 10... Be7 {[%clk 0:02:52.1]} 11. Qd2 {[%clk
0:02:45.2]} 11... b5 {[%clk 0:02:44.8]} 12. Ng3 {[%clk 0:02:44]} 12... Nb6
{[%clk 0:02:42.4]} 13. O-O-O {[%clk 0:02:38.1]} 13... b4 {[%clk 0:02:08.8]} 14.
Nd5 {[%clk 0:02:19.2]} 14... Nbxd5 {[%clk 0:01:42.5]} 15. exd5 {[%clk
0:02:20.1]} 15... Bxd5 {[%clk 0:01:43.4]} 16. Rg1 {[%clk 0:02:17.3]} 16... Bxa2
{[%clk 0:01:34.4]} 17. Nf5 {[%clk 0:02:13.9]} 17... d5 {[%clk 0:00:49.3]} 18.
Nxg7+ {[%clk 0:02:05.6]} 18... Kf8 {[%clk 0:00:49.6]} 19. Nf5 {[%clk 0:01:51.9]}
19... Qa5 {[%clk 0:00:47.7]} 20. Bxh6+ {[%clk 0:01:47.1]} 20... Ke8 {[%clk
0:00:46.5]} 21. f3 {[%clk 0:00:49.5]} 21... Rc8 {[%clk 0:00:35.6]} 22. Bg7
{[%clk 0:00:40.6]} 22... Bb3 {[%clk 0:00:31.1]} 23. Qd3 {[%clk 0:00:29.9]} 23...
Rxc2+ {[%clk 0:00:19.7]} 24. Qxc2 {[%clk 0:00:29.3]} 24... Bxc2 {[%clk
0:00:20.6]} 25. Kxc2 {[%clk 0:00:26.6]} 25... Qa4+ {[%clk 0:00:20.2]} 26. Kc1
{[%clk 0:00:23.4]} 26... Rg8 {[%clk 0:00:16.7]} 27. Nxe7 {[%clk 0:00:18.7]}
27... Kxe7 {[%clk 0:00:17.6]} 28. Bxf6+ {[%clk 0:00:16.8]} 28... Kxf6 {[%clk
0:00:18.5]} 29. Bd3 {[%clk 0:00:16.1]} 29... Rc8+ {[%clk 0:00:18.6]} 30. Kd2
{[%clk 0:00:16.5]} 30... Qb3 {[%clk 0:00:18.8]} 31. Rb1 {[%clk 0:00:16.8]} 31...
Ke7 {[%clk 0:00:14.1]} 32. h4 {[%clk 0:00:16.4]} 32... Rh8 {[%clk 0:00:13.6]}
33. h5 {[%clk 0:00:16.3]} 33... a5 {[%clk 0:00:13.7]} 34. Rh1 {[%clk 0:00:15.1]}
34... a4 {[%clk 0:00:13.8]} 35. h6 {[%clk 0:00:14.6]} 35... Qa2 {[%clk
0:00:11.4]} 36. h7 {[%clk 0:00:13.5]} 36... a3 {[%clk 0:00:11.4]} 37. Ke3 {[%clk
0:00:10]} 37... axb2 {[%clk 0:00:11.4]} 38. Bf5 {[%clk 0:00:09.5]} 38... d4+
{[%clk 0:00:11.7]} 39. Ke4 {[%clk 0:00:08]} 39... Qa8+ {[%clk 0:00:12.2]} 40.
Kd3 {[%clk 0:00:07]} 40... Qxf3+ {[%clk 0:00:12.3]} 41. Kd2 {[%clk 0:00:05.8]}
41... Qe3+ {[%clk 0:00:12.3]} 42. Kd1 {[%clk 0:00:06]} 42... Qc3 {[%clk
0:00:07.9]} 43. Rh2 {[%clk 0:00:05.1]} 43... b3 {[%clk 0:00:04]} 44. Rhxb2
{[%clk 0:00:02.9]} 44... Qf3+ {[%clk 0:00:02.9]} 45. Ke1 {[%clk 0:00:02.5]}
45... Qe3+ {[%clk 0:00:03.3]} 46. Kd1 {[%clk 0:00:02.2]} 46... Qf3+ {[%clk
0:00:03.4]} 47. Ke1 {[%clk 0:00:02.7]} 47... Qe3+ {[%clk 0:00:03.3]} 48. Re2
{[%clk 0:00:03.1]} 48... Qc3+ {[%clk 0:00:03.3]} 49. Kd1 {[%clk 0:00:03.1]}
49... f6 {[%clk 0:00:01.2]} 50. g5 {[%clk 0:00:02.6]} 50... b2 {[%clk
0:00:01.6]} 51. Rexb2 {[%clk 0:00:02.3]} 51... fxg5 {[%clk 0:00:01.5]} 52. Rb7+
{[%clk 0:00:02.1]} 52... Kf6 {[%clk 0:00:01.8]} 53. Be4 {[%clk 0:00:02.3]} 53...
g4 {[%clk 0:00:01.6]} 54. R1b6+ {[%clk 0:00:02.2]} 54... Kg5 {[%clk 0:00:01.7]}
55. Rf7 {[%clk 0:00:02.5]} 55... Kh4 {[%clk 0:00:01.8]} 56. Rg6 {[%clk
0:00:02.1]} 56... Qa1+ {[%clk 0:00:02.1]} 0-1

[Event "*** Titled Tuesday Blitz"]
[Site "Chess.com"]
[Date "2020.05.26"]
[Round "8"]
[White "Evgeny81"]
[Black "m_ezat"]
[Result "1-0"]
[WhiteElo "2709"]
[BlackElo "2490"]
[TimeControl "180+1"]
[EndTime "11:42:04 PDT"]
[Termination "Evgeny81 won by resignation"]

1. e4 {[%clk 0:03:00.9]} 1... c6 {[%clk 0:02:57]} 2. d4 {[%clk 0:03:00.4]} 2...
d5 {[%clk 0:02:57.4]} 3. Nc3 {[%clk 0:02:59.4]} 3... dxe4 {[%clk 0:02:57.2]} 4.
Nxe4 {[%clk 0:03:00]} 4... Nd7 {[%clk 0:02:57.7]} 5. Ng5 {[%clk 0:02:58.9]} 5...
Ngf6 {[%clk 0:02:56.4]} 6. Bd3 {[%clk 0:02:58]} 6... e6 {[%clk 0:02:56.6]} 7.
Qe2 {[%clk 0:02:55.1]} 7... Bd6 {[%clk 0:02:56.5]} 8. N1f3 {[%clk 0:02:53.6]}
8... h6 {[%clk 0:02:56.9]} 9. Ne4 {[%clk 0:02:53.8]} 9... Nxe4 {[%clk
0:02:57.5]} 10. Qxe4 {[%clk 0:02:54.1]} 10... Qc7 {[%clk 0:02:58.1]} 11. Qg4
{[%clk 0:02:53.7]} 11... g5 {[%clk 0:02:56.6]} 12. Qe4 {[%clk 0:02:48.9]} 12...
b6 {[%clk 0:02:46.2]} 13. b3 {[%clk 0:02:43.2]} 13... Bb7 {[%clk 0:02:45]} 14.
Bb2 {[%clk 0:02:43.4]} 14... O-O-O {[%clk 0:02:43.4]} 15. Qe2 {[%clk 0:02:41.5]}
15... Rhe8 {[%clk 0:02:40.8]} 16. O-O-O {[%clk 0:02:39.4]} 16... c5 {[%clk
0:02:40.1]} 17. Ba6 {[%clk 0:02:36]} 17... Bxa6 {[%clk 0:02:36.2]} 18. Qxa6+
{[%clk 0:02:35.9]} 18... Qb7 {[%clk 0:02:35.6]} 19. Qe2 {[%clk 0:02:35.2]} 19...
g4 {[%clk 0:02:10.6]} 20. Ne1 {[%clk 0:02:27.3]} 20... h5 {[%clk 0:02:01.9]} 21.
Kb1 {[%clk 0:02:24.6]} 21... cxd4 {[%clk 0:01:59.4]} 22. Rxd4 {[%clk 0:02:22.4]}
22... Bc7 {[%clk 0:01:42.5]} 23. h3 {[%clk 0:02:18.4]} 23... Nc5 {[%clk
0:01:33]} 24. hxg4 {[%clk 0:02:16]} 24... hxg4 {[%clk 0:01:33]} 25. Qxg4 {[%clk
0:02:13]} 25... Rxd4 {[%clk 0:01:29.5]} 26. Bxd4 {[%clk 0:02:12.7]} 26... Ne4
{[%clk 0:01:27.5]} 27. Nd3 {[%clk 0:01:48.7]} 27... Qd5 {[%clk 0:01:22.9]} 28.
Bb2 {[%clk 0:01:45]} 28... Kb8 {[%clk 0:01:04.2]} 29. Qh5 {[%clk 0:01:40.1]}
29... Qxh5 {[%clk 0:00:55.5]} 30. Rxh5 {[%clk 0:01:40.1]} 30... Rg8 {[%clk
0:00:54.5]} 31. Rh8 {[%clk 0:01:38.7]} 31... Rxh8 {[%clk 0:00:52.2]} 32. Bxh8
{[%clk 0:01:39.3]} 32... Kb7 {[%clk 0:00:52.3]} 33. f3 {[%clk 0:01:34.1]} 33...
Ng3 {[%clk 0:00:51.2]} 34. Kc1 {[%clk 0:01:30]} 34... Kc6 {[%clk 0:00:48.1]} 35.
Kd2 {[%clk 0:01:30]} 35... Nf5 {[%clk 0:00:38.8]} 36. Be5 {[%clk 0:01:20.3]}
36... Bd8 {[%clk 0:00:38.9]} 37. g4 {[%clk 0:01:19.3]} 37... Ne7 {[%clk
0:00:35.7]} 38. Bf6 {[%clk 0:01:15.4]} 38... Kd7 {[%clk 0:00:35.2]} 39. Ne5+
{[%clk 0:01:13.6]} 39... Ke8 {[%clk 0:00:34.9]} 40. Bxe7 {[%clk 0:01:13.4]}
40... Bxe7 {[%clk 0:00:32.1]} 41. Nc6 {[%clk 0:01:13.6]} 41... Bg5+ {[%clk
0:00:30.7]} 42. Kd3 {[%clk 0:01:13.5]} 42... a6 {[%clk 0:00:29.7]} 43. Nb4
{[%clk 0:01:09.3]} 43... a5 {[%clk 0:00:29.1]} 44. Nc6 {[%clk 0:01:09]} 44...
Bf4 {[%clk 0:00:22]} 45. Kc4 {[%clk 0:01:05.6]} 45... Kd7 {[%clk 0:00:22.1]} 46.
Kb5 {[%clk 0:01:05.9]} 46... Kc7 {[%clk 0:00:21.8]} 47. Nd4 {[%clk 0:00:57.3]}
47... Be3 {[%clk 0:00:20]} 48. Ne2 {[%clk 0:00:56.9]} 48... f5 {[%clk
0:00:17.7]} 49. gxf5 {[%clk 0:00:53.1]} 49... exf5 {[%clk 0:00:17.8]} 50. Nc3
{[%clk 0:00:53.1]} 50... Kb7 {[%clk 0:00:15.9]} 51. Nd5 {[%clk 0:00:53]} 51...
Bc5 {[%clk 0:00:16.2]} 52. c3 {[%clk 0:00:49.3]} 52... Bf2 {[%clk 0:00:16.1]}
53. Ne7 {[%clk 0:00:48.6]} 53... f4 {[%clk 0:00:16.2]} 54. Nd5 {[%clk
0:00:48.7]} 54... Be3 {[%clk 0:00:16.9]} 55. a4 {[%clk 0:00:43.2]} 55... Ka7
{[%clk 0:00:17]} 56. Kc6 {[%clk 0:00:40.8]} 56... Ka6 {[%clk 0:00:17.3]} 57.
Nc7+ {[%clk 0:00:40.2]} 57... Ka7 {[%clk 0:00:16.6]} 58. Nb5+ {[%clk 0:00:40.2]}
58... Ka6 {[%clk 0:00:16.5]} 59. Kd5 {[%clk 0:00:36.6]} 59... Kb7 {[%clk
0:00:14.8]} 60. Nd6+ {[%clk 0:00:34.5]} 60... Ka6 {[%clk 0:00:14.6]} 61. Ke4
{[%clk 0:00:33]} 61... Bd2 {[%clk 0:00:13.3]} 62. Kd3 {[%clk 0:00:32.4]} 62...
Be3 {[%clk 0:00:12.9]} 63. Nc4 {[%clk 0:00:32.4]} 63... Bc1 {[%clk 0:00:13.1]}
64. Kc2 {[%clk 0:00:31.2]} 64... b5 {[%clk 0:00:06]} 65. axb5+ {[%clk
0:00:30.7]} 65... Kxb5 {[%clk 0:00:06.5]} 66. Kxc1 {[%clk 0:00:31.4]} 66... a4
{[%clk 0:00:07]} 67. bxa4+ {[%clk 0:00:31.2]} 67... Kxc4 {[%clk 0:00:06.9]} 68.
Kc2 {[%clk 0:00:31.2]} 1-0